bitfinex/quotes_SOLUSD_20241005
["timestamp","ask_amount","ask_price","bid_price","bid_amount"]
[1728118614729,1.08294337,144.67,144.64,17.20461954]
[1728118616051,6.9118,144.68,144.64,17.20461954]
[1728118616233,1.08294337,144.67,144.64,17.20461954]
[1728118619651,6.9114,144.69,144.64,17.20461954]
[1728118619830,1.08294337,144.68,144.64,17.20461954]
[1728118624050,17.21124337,144.68,144.63,17.2849]
[1728118624242,1.08294337,144.67,144.62,7.22258829]
[1728118624448,7.99524337,144.67,144.62,24.42790783]
[1728118624850,7.99524337,144.67,144.63,6.9141]
[1728118625861,6.9123,144.67,144.63,6.9141]
[1728118626360,1.08294337,144.66,144.63,6.9141]
[1728118626579,6.9123,144.67,144.63,6.9141]
[1728118628442,1.08294337,144.66,144.63,6.9141]
[1728118628636,6.9123,144.67,144.63,6.9141]
[1728118629470,1.08294337,144.66,144.63,6.9141]
[1728118632061,6.9123,144.67,144.63,6.9141]
[1728118632265,1.08294337,144.66,144.63,6.9141]
[1728118634265,1.08294337,144.66,144.62,7.22258829]
[1728118634557,6.9148,144.62,144.6,1.2036883]
[1728118634764,7.99804337,144.61,144.57,14.12612952]
[1728118634952,16.1283,144.6,144.57,7.20952952]
[1728118635146,16.1283,144.6,144.54,6.9184]
[1728118635147,7.99914337,144.59,144.54,6.9184]
[1728118635354,7.99914337,144.59,144.54,14.12927331]
[1728118635550,7.99914337,144.59,144.54,24.42029285]
[1728118636561,1.08294337,144.59,144.54,7.21087331]
[1728118636869,16.1283,144.6,144.56,6.9175]
[1728118638761,1.08294337,144.59,144.56,6.9175]
[1728118639477,1.08294337,144.59,144.55,6.9179]
[1728118639857,23.0439,144.6,144.55,6.9179]
[1728118640769,1.08294337,144.59,144.55,6.9179]
[1728118641069,23.0439,144.6,144.55,6.9179]
[1728118641957,1.08294337,144.59,144.55,6.9179]
[1728118643669,23.0439,144.6,144.55,6.9179]
[1728118647181,1.08294337,144.59,144.55,6.9179]
[1728118647360,23.0439,144.6,144.55,6.9179]
[1728118647968,16.3127,144.63,144.62,6.9146]
[1728118648880,16.3127,144.63,144.62,17.20561954]
[1728118649097,17.39564337,144.67,144.64,6.9136]
[1728118649259,16.3127,144.67,144.64,6.9136]
[1728118649776,1.08294337,144.66,144.64,6.9136]
[1728118649962,1.08294337,144.66,144.63,6.9141]
[1728118651481,16.3127,144.67,144.64,6.9135]
[1728118651982,17.39564337,144.67,144.63,10.29101954]
[1728118652168,17.39564337,144.67,144.63,17.20511954]
[1728118658287,16.3127,144.67,144.63,17.20511954]
[1728118665392,1.08294337,144.66,144.63,17.20511954]
[1728118666886,16.3127,144.67,144.63,17.20511954]
[1728118668575,1.08294337,144.66,144.63,17.20511954]
[1728118671103,16.3127,144.67,144.63,17.20511954]
[1728118672307,1.08294337,144.66,144.63,17.20511954]
[1728118673302,16.3127,144.67,144.63,17.20511954]
[1728118674002,16.3127,144.67,144.65,10.29101954]
[1728118674300,16.3127,144.67,144.65,17.20411954]
[1728118678890,6.9109,144.7,144.65,17.20411954]
[1728118679119,6.9109,144.7,144.66,10.29101954]
[1728118679503,6.9121,144.68,144.63,24.1985]
[1728118679723,16.2886,144.71,144.63,24.1985]
[1728118679724,6.9123,144.67,144.63,24.1985]
[1728118680010,1.08294337,144.66,144.63,24.1985]
[1728118680608,1.08294337,144.66,144.62,14.10639397]
[1728118680906,23.2017,144.66,144.62,7.19179397]
[1728118681093,7.99614337,144.65,144.62,7.19179397]
[1728118682113,6.9132,144.65,144.62,7.19179397]
[1728118682298,6.9132,144.65,144.62,17.48281351]
[1728118682812,1.08294337,144.64,144.62,17.48281351]
[1728118683002,1.08294337,144.64,144.62,7.19179397]
[1728118684421,1.08294337,144.65,144.62,7.19179397]
[1728118684711,16.2886,144.66,144.63,10.29101954]
[1728118685216,17.37154337,144.66,144.63,10.29101954]
[1728118687014,24.28434337,144.66,144.63,10.29101954]
[1728118687203,6.9134,144.65,144.62,7.19179397]
[1728118687404,1.08294337,144.64,144.62,7.19179397]
[1728118688091,23.2014,144.66,144.62,7.19179397]
[1728118688394,1.08294337,144.65,144.62,7.19179397]
[1728118688888,1.08294337,144.65,144.62,14.10629397]
[1728118696027,16.2886,144.66,144.63,10.29101954]
[1728118696192,6.9116,144.69,144.64,34.48831954]
[1728118696391,1.08294337,144.68,144.64,34.48831954]
[1728118696927,6.9119,144.68,144.64,34.48831954]
[1728118697430,1.08294337,144.67,144.64,34.48831954]
[1728118697591,6.9119,144.68,144.64,34.48831954]
[1728118697796,6.9114,144.69,144.64,34.48831954]
[1728118698291,1.08294337,144.68,144.64,34.48831954]
[1728118698613,1.08294337,144.68,144.64,24.1973]
[1728118699712,1.08294337,144.67,144.64,24.1973]
[1728118710028,6.9128,144.66,144.62,14.10639397]
[1728118710244,1.08294337,144.65,144.62,14.10639397]
[1728118711198,6.9128,144.66,144.62,14.10639397]
[1728118711402,1.08294337,144.65,144.62,14.10639397]
[1728118714008,6.9128,144.66,144.62,14.10639397]
[1728118714530,16.2886,144.7,144.62,7.19179397]
[1728118714825,6.9122,144.67,144.63,24.1987]
[1728118719511,1.08294337,144.66,144.63,17.2847]
[1728118719712,6.9122,144.67,144.63,17.2847]
[1728118719909,1.08294337,144.66,144.63,17.2847]
[1728118720210,6.9122,144.67,144.63,17.2847]
[1728118723636,1.08294337,144.66,144.63,17.2847]
[1728118725815,16.2886,144.7,144.65,6.9131]
[1728118725816,6.9114,144.69,144.65,6.9131]
[1728118726011,7.99434337,144.69,144.65,6.9131]
[1728118726220,6.9114,144.69,144.65,6.9131]
[1728118726632,1.08294337,144.68,144.65,6.9131]
[1728118728239,1.08294337,144.68,144.64,6.9135]
[1728118728436,7.99514337,144.68,144.63,24.1987]
[1728118728638,1.08294337,144.68,144.63,24.1987]
[1728118728841,6.9118,144.68,144.63,24.1987]
[1728118729046,6.9118,144.68,144.64,17.20451954]
[1728118729227,6.9114,144.69,144.64,17.20451954]
[1728118729663,23.7857,144.72,144.66,10.29101954]
[1728118729664,20.0,144.72,144.66,10.29101954]
[1728118729956,15.4997,144.73,144.67,24.1923]
[1728118731134,6.9103,144.71,144.67,24.1923]
[1728118731340,15.4997,144.73,144.69,6.9111]
[1728118731524,7.7599545,144.74,144.69,17.20211954]
[1728118731936,1.08294337,144.73,144.7,27.56771954]
[1728118732144,0.8509545,144.74,144.71,10.29101954]
[1728118732327,0.8509545,144.74,144.7,27.56771954]
[1728118732525,0.8509545,144.74,144.71,6.9103]
[1728118733138,1.08294337,144.73,144.7,27.56771954]
[1728118733445,1.08294337,144.73,144.7,34.47841954]
[1728118734121,0.8509545,144.74,144.7,34.47841954]
[1728118734325,1.93389787,144.74,144.7,34.47841954]
[1728118736651,0.8509545,144.74,144.7,34.47841954]
[1728118737720,1.93389787,144.74,144.7,34.47841954]
[1728118740437,0.8509545,144.74,144.7,34.47841954]
[1728118740749,1.08294337,144.73,144.7,34.47841954]
[1728118741657,1.93389787,144.74,144.7,34.47841954]
[1728118741948,0.8509545,144.74,144.7,34.47841954]
[1728118742434,1.93389787,144.74,144.7,34.47841954]
[1728118743357,0.8509545,144.74,144.7,34.47841954]
[1728118744948,1.93389787,144.74,144.7,34.47841954]
[1728118748858,0.8509545,144.74,144.7,34.47841954]
[1728118749056,1.93389787,144.74,144.7,34.47841954]
[1728118749757,1.93389787,144.74,144.7,17.2767]
[1728118749968,1.93389787,144.74,144.67,6.2293]
[1728118749969,6.9094,144.73,144.68,6.9116]
[1728118750269,6.9094,144.73,144.69,17.20221954]
[1728118750458,8.84289787,144.74,144.69,17.20221954]
[1728118751148,0.8509545,144.74,144.7,10.29101954]
[1728118751460,1.93389787,144.74,144.7,10.29101954]
[1728118752143,1.93389787,144.74,144.71,6.9103]
[1728118752745,1.93389787,144.74,144.7,17.20171954]
[1728118755640,8.84289787,144.74,144.7,17.20171954]
[1728118755958,6.9095,144.73,144.69,17.2778]
[1728118756270,1.08294337,144.72,144.69,17.2778]
[1728118757454,6.9095,144.73,144.69,17.2778]
[1728118757664,1.08294337,144.72,144.69,17.2778]
[1728118757964,6.9095,144.73,144.69,17.2778]
[1728118758472,1.08294337,144.72,144.69,17.2778]
[1728118759863,6.9095,144.73,144.69,17.2778]
[1728118760959,7.99244337,144.73,144.69,17.2778]
[1728118761165,6.9095,144.73,144.69,17.2778]
[1728118761551,1.08294337,144.72,144.69,17.2778]
[1728118765389,1.08294337,144.72,144.69,24.1891]
[1728118765960,6.9095,144.73,144.69,24.1891]
[1728118766163,1.08294337,144.72,144.69,24.1891]
[1728118768667,16.70594337,144.71,144.66,31.394832]
[1728118768889,6.9112,144.7,144.67,30.0]
[1728118769069,1.08294337,144.69,144.66,17.2815]
[1728118770778,1.08294337,144.69,144.64,7.20279102]
[1728118770779,6.9118,144.68,144.64,14.11639102]
[1728118770981,1.08294337,144.67,144.64,7.20279102]
[1728118771174,1.08294337,144.67,144.63,34.48981954]
[1728118777498,7.99524337,144.67,144.63,34.48981954]
[1728118777698,15.623,144.66,144.63,27.57581954]
[1728118777876,1.08294337,144.65,144.63,27.57581954]
[1728118779497,15.623,144.66,144.63,27.57581954]
[1728118783299,15.623,144.66,144.63,34.48991954]
[1728118783480,15.623,144.66,144.64,6.9136]
[1728118783682,36.5555,144.72,144.66,17.2808]
[1728118783876,6.9108,144.71,144.66,24.1934]
[1728118784476,1.08294337,144.7,144.66,24.1934]
[1728118785176,7.99384337,144.7,144.66,24.1934]
[1728118785669,7.99384337,144.7,144.66,17.2808]
[1728118787086,36.5555,144.72,144.67,6.9119]
[1728118787287,36.5555,144.72,144.66,17.2808]
[1728118787490,36.5555,144.72,144.66,24.1935]
[1728118787691,6.9108,144.7,144.66,24.1935]
[1728118788001,1.08294337,144.69,144.66,17.2808]
[1728118789079,1.08294337,144.69,144.66,24.1931]
[1728118791494,6.9109,144.7,144.66,24.1931]
[1728118792502,6.9109,144.7,144.66,17.2808]
[1728118792706,16.5555,144.72,144.69,10.29101954]
[1728118792882,16.5555,144.72,144.69,17.20231954]
[1728118793878,7.7598545,144.74,144.69,17.20231954]
[1728118794801,1.08294337,144.73,144.69,17.20231954]
[1728118801408,7.7598545,144.74,144.69,17.20231954]
[1728118804415,1.08294337,144.73,144.69,17.20231954]
[1728118805414,7.7598545,144.74,144.69,17.20231954]
[1728118806621,1.08294337,144.73,144.69,17.20231954]
[1728118809438,7.7598545,144.74,144.69,17.20231954]
[1728118809718,1.08294337,144.73,144.69,17.20231954]
[1728118813226,7.7598545,144.74,144.69,17.20231954]
[1728118814802,1.08294337,144.73,144.69,17.20231954]
[1728118816804,7.99244337,144.73,144.69,17.20231954]
[1728118818003,7.99244337,144.73,144.69,6.9113]
[1728118818206,6.91,144.72,144.68,17.2787]
[1728118818444,6.9109,144.7,144.67,7.20270883]
[1728118818727,7.99334337,144.71,144.67,24.40592837]
[1728118818902,6.9104,144.71,144.67,24.40592837]
[1728118819428,6.9098,144.73,144.68,10.29101954]
[1728118819635,6.9098,144.73,144.68,17.20281954]
[1728118819826,6.91,144.72,144.68,17.20281954]
[1728118822326,0.8509545,144.74,144.69,10.29101954]
[1728118822524,0.8509545,144.74,144.7,10.29101954]
[1728118823030,7.99234337,144.73,144.69,6.9109]
[1728118823332,1.08294337,144.73,144.69,10.29101954]
[1728118823626,8.84279787,144.74,144.7,6.9103]
[1728118823834,8.84279787,144.74,144.72,10.29101954]
[1728118823835,0.8509545,144.74,144.72,10.29101954]
[1728118827543,0.8509545,144.74,144.71,6.9101]
[1728118827716,0.8509545,144.74,144.71,17.20111954]
[1728118829739,0.8509545,144.74,144.71,10.29101954]
[1728118831643,1.93389787,144.74,144.71,10.29101954]
[1728118832615,0.8509545,144.74,144.71,10.29101954]
[1728118833133,1.93389787,144.74,144.71,10.29101954]
[1728118833346,1.93389787,144.74,144.7,34.47791954]
[1728118833926,0.8509545,144.74,144.71,10.29101954]
[1728118840341,0.8509545,144.74,144.72,11.67291401]
[1728118841948,0.8509545,144.74,144.72,10.29101954]
[1728118843848,0.8509545,144.74,144.71,10.29101954]
[1728118845757,0.8509545,144.74,144.72,10.29101954]
[1728118851159,7.7599545,144.74,144.7,7.20276619]
[1728118853039,1.08294337,144.73,144.7,7.20276619]
[1728118853861,7.7599545,144.74,144.7,7.20276619]
[1728118861352,7.7599545,144.74,144.7,14.11356619]
[1728118861544,0.8509545,144.74,144.71,17.20121954]
[1728118864867,0.8509545,144.74,144.73,17.20041954]
[1728118865943,0.8509545,144.74,144.73,47.20041954]
[1728118866145,0.8509545,144.74,144.73,40.29101954]
[1728118868653,0.8509545,144.74,144.73,30.0]
[1728118869259,0.8509545,144.74,144.7,7.20361709]
[1728118869453,0.8509545,144.74,144.65,28.77651346]
[1728118869454,6.91,144.72,144.65,28.77651346]
[1728118869647,6.91,144.72,144.67,30.0]
[1728118869848,6.91,144.72,144.67,37.20670562]
[1728118870273,6.9095,144.73,144.67,37.20670562]
[1728118871757,7.7598545,144.74,144.67,47.49772516]
[1728118871977,7.7598545,144.74,144.68,0.12549]
[1728118873293,7.7598545,144.74,144.68,30.12549]
[1728118875063,1.08294337,144.73,144.68,30.0]
[1728118875265,6.91,144.72,144.68,30.0]
[1728118875460,6.91,144.72,144.67,7.20670562]
[1728118878070,20.0,144.72,144.67,7.20670562]
[1728118881486,35.9122,144.72,144.67,7.20670562]
[1728118881677,35.70486733,144.72,144.67,7.20670562]
[1728118882666,42.61476733,144.72,144.67,7.20670562]
[1728118882867,1.08294337,144.71,144.68,0.12549]
[1728118883173,0.8509545,144.74,144.7,0.12549]
[1728118884677,0.8509545,144.74,144.7,30.12549]
[1728118888708,0.8509545,144.74,144.7,0.12549]
[1728118889598,0.8509545,144.74,144.7,1.50720234]
[1728118890101,0.8509545,144.74,144.7,0.12549]
[1728118890880,0.8509545,144.74,144.7,1.50720107]
[1728118891590,0.8509545,144.74,144.7,31.50720107]
[1728118892794,0.8509545,144.74,144.7,30.12549]
[1728118892999,0.8509545,144.74,144.71,1.38170979]
[1728118893195,0.8509545,144.74,144.7,30.12549]
[1728118893893,0.8509545,144.74,144.71,1.3817089]
[1728118895707,0.8509545,144.74,144.72,1.38158878]
[1728118896586,0.8509545,144.74,144.72,11.67260832]
[1728118897291,0.8509545,144.74,144.72,41.67260832]
[1728118898085,0.8509545,144.74,144.72,30.0]
[1728118902200,7.7598545,144.74,144.68,7.20518059]
[1728118902415,6.9099,144.72,144.69,30.0]
[1728118902702,6.9094,144.73,144.69,30.0]
[1728118902910,20.8509545,144.74,144.69,30.0]
[1728118903211,27.7599545,144.74,144.69,30.0]
[1728118904812,27.7599545,144.74,144.68,7.20518059]
[1728118907708,27.7599545,144.74,144.68,17.49620013]
[1728118908710,27.7599545,144.74,144.69,30.0]
[1728118912811,28.84289787,144.74,144.69,30.0]
[1728118913113,27.7599545,144.74,144.69,30.0]
[1728118913692,23.2159,144.73,144.69,30.0]
[1728118915214,23.2159,144.73,144.68,7.20518059]
[1728118921518,23.2159,144.73,144.69,1.38196259]
[1728118921724,23.2159,144.73,144.68,7.20518059]
[1728118922812,16.3065,144.73,144.69,1.38196486]
[1728118923310,16.3065,144.73,144.67,8.24070019]
[1728118923513,16.3065,144.73,144.68,37.20541701]
[1728118925121,24.29894337,144.73,144.68,37.20541701]
[1728118929629,20.0,144.72,144.68,37.20541701]
[1728118930032,6.9104,144.71,144.68,37.20541701]
[1728118930722,6.9104,144.71,144.68,7.20541701]
[1728118932209,20.0,144.72,144.68,7.20541701]
[1728118932409,26.91,144.72,144.68,7.20541701]
[1728118933833,20.0,144.72,144.68,7.20541701]
[1728118934714,26.9099,144.72,144.68,7.20541701]
[1728118938842,6.9109,144.7,144.68,7.20541701]
[1728118939035,15.3571,144.69,144.68,7.20541701]
[1728118939234,15.3571,144.69,144.62,17.286]
[1728118939427,22.2687,144.69,144.64,37.20713026]
[1728118939747,22.2687,144.69,144.64,38.41061383]
[1728118940943,15.3571,144.69,144.64,38.41061383]
[1728118941250,15.3571,144.69,144.64,45.32421383]
[1728118941429,15.3571,144.69,144.64,38.41061383]
[1728118943738,1.08294337,144.68,144.64,38.41061383]
[1728118943935,6.9123,144.67,144.64,38.41061383]
[1728118944134,6.9123,144.67,144.64,37.20713026]
[1728118944842,6.9119,144.68,144.64,37.20713026]
[1728118945347,6.9119,144.68,144.64,7.20713026]
[1728118953035,6.9119,144.68,144.65,1.38242382]
[1728118953556,6.9119,144.68,144.64,7.20713026]
[1728118954136,6.9119,144.68,144.65,1.38241321]
[1728118956650,6.9119,144.68,144.64,7.20713026]
[1728118970048,6.9119,144.68,144.65,1.38241664]
[1728118970467,6.9119,144.68,144.64,7.20713026]
[1728118971575,20.0,144.68,144.64,24.4114498]
[1728118971748,20.0,144.68,144.65,1.38228938]
[1728118972156,15.3571,144.69,144.65,6.9132]
[1728118972761,15.3571,144.69,144.64,17.49835269]
[1728118973078,15.3571,144.69,144.65,1.38222279]
[1728118973253,15.3571,144.69,144.65,30.0]
[1728118973450,15.3571,144.69,144.64,24.41185269]
[1728118973852,15.3571,144.69,144.65,1.38225639]
[1728118974053,15.3571,144.69,144.64,24.41185269]
[1728118977281,15.3571,144.69,144.65,1.38225698]
[1728118977953,15.3571,144.69,144.64,24.41185269]
[1728118978770,15.3571,144.69,144.65,36.9131]
[1728118981159,15.3571,144.69,144.66,11.67318762]
[1728118981361,26.91,144.72,144.66,48.58588762]
[1728118981871,26.91,144.72,144.66,47.20371954]
[1728118982559,26.91,144.72,144.66,36.9127]
[1728118984176,26.91,144.72,144.67,1.38202725]
[1728118984357,26.91,144.72,144.67,31.38202725]
[1728118985872,26.91,144.72,144.67,30.0]
[1728118986557,26.91,144.72,144.68,1.38203127]
[1728118986756,26.91,144.72,144.67,30.0]
[1728118987179,26.91,144.72,144.68,1.38202307]
[1728118987559,26.91,144.72,144.67,30.0]
[1728118990481,26.91,144.72,144.67,36.9121]
[1728118990695,20.0,144.72,144.68,1.38201486]
[1728118991457,20.0,144.72,144.68,31.38201486]
[1728118992554,20.0,144.72,144.68,30.0]
[1728118992759,26.9099,144.72,144.68,30.0]
[1728118993862,6.9104,144.71,144.68,30.0]
[1728118994875,6.9104,144.71,144.66,17.49770532]
[1728118995085,6.9104,144.71,144.67,30.0]
[1728118995668,6.9104,144.71,144.66,7.20668578]
[1728118997569,6.9104,144.71,144.67,1.38209178]
[1728119004293,6.9104,144.71,144.66,7.20751912]
[1728119004602,6.9104,144.71,144.67,31.38208781]
[1728119004783,6.9104,144.71,144.67,30.0]
[1728119006100,6.9118,144.68,144.67,30.0]
[1728119006489,6.9118,144.68,144.59,24.2058]
[1728119006490,6.9134,144.65,144.59,24.2058]
[1728119006691,6.9137,144.64,144.61,30.0]
[1728119007398,6.9133,144.65,144.61,30.0]
[1728119007616,6.3193,144.66,144.61,30.0]
[1728119007804,6.9138,144.64,144.61,30.0]
[1728119008116,6.9138,144.64,144.6,7.21019692]
[1728119011212,7.40224337,144.66,144.6,7.21019692]
[1728119011213,6.9143,144.63,144.6,7.21019692]
[1728119012499,6.9138,144.64,144.6,7.21019692]
[1728119012721,15.3177,144.63,144.6,7.21019692]
[1728119019617,22.2319,144.63,144.6,7.21019692]
[1728119021934,22.2319,144.63,144.6,8.59298592]
[1728119022631,15.3177,144.63,144.6,8.59298592]
[1728119023924,26.9133,144.65,144.6,14.12579692]
[1728119024233,15.2621,144.66,144.63,10.29101954]
[1728119024532,6.9117,144.69,144.63,10.29101954]
[1728119024533,6.9116,144.69,144.64,1.3824634]
[1728119024844,21.8174,144.7,144.64,31.3824634]
[1728119025135,6.9114,144.69,144.64,31.3824634]
[1728119025750,6.9118,144.68,144.64,30.0]
[1728119026241,6.9118,144.68,144.63,17.33060954]
[1728119028629,21.08294337,144.69,144.62,17.2866]
[1728119028829,6.9127,144.66,144.62,17.2866]
[1728119029016,21.08294337,144.69,144.61,7.3350202]
[1728119029328,6.9134,144.65,144.62,30.0]
[1728119030136,6.9128,144.66,144.62,30.0]
[1728119030749,6.9128,144.66,144.63,1.38255393]
[1728119031517,6.9124,144.67,144.62,30.0]
[1728119034321,20.0,144.69,144.62,30.0]
[1728119034532,6.9138,144.64,144.62,30.0]
[1728119035422,6.9138,144.64,144.61,7.2095302]
[1728119041418,6.9138,144.64,144.62,1.38271327]
[1728119041838,6.9138,144.64,144.61,7.2095302]
[1728119042732,37.2788,144.69,144.61,7.2095302]
[1728119042935,6.9133,144.65,144.61,7.2095302]
[1728119043838,6.9128,144.66,144.61,14.1245302]
[1728119044034,6.9128,144.66,144.61,7.2095302]
[1728119044226,38.36174337,144.69,144.61,7.2095302]
[1728119044427,6.9135,144.65,144.61,7.2095302]
[1728119046640,20.0,144.69,144.65,6.9131]
[1728119046848,22.1733,144.7,144.64,17.20431954]
[1728119047234,6.9114,144.69,144.64,17.20431954]
[1728119049333,6.9114,144.69,144.65,30.0]
[1728119050443,20.0,144.69,144.65,30.0]
[1728119050657,6.9122,144.68,144.65,30.0]
[1728119051958,6.9123,144.67,144.65,30.0]
[1728119052167,6.9127,144.66,144.65,30.0]
[1728119052538,6.9127,144.66,144.62,30.0]
[1728119053958,6.9123,144.67,144.63,1.38254347]
[1728119054151,6.9123,144.67,144.62,40.29101954]
[1728119054551,6.9129,144.66,144.62,40.29101954]
[1728119054761,6.9129,144.66,144.62,30.0]
[1728119054960,6.9129,144.66,144.63,1.38254657]
[1728119055348,6.9129,144.66,144.62,30.0]
[1728119055659,6.9129,144.66,144.62,0.25098]
[1728119058573,6.9129,144.66,144.62,30.25098]
[1728119059275,6.9129,144.66,144.62,30.12549]
[1728119060075,6.9123,144.67,144.62,37.04009]
[1728119063376,21.08294337,144.69,144.62,37.04009]
[1728119063680,6.9127,144.66,144.62,37.04009]
[1728119064175,20.0,144.69,144.64,0.12549]
[1728119064386,20.0,144.69,144.64,7.03909]
[1728119064555,6.9118,144.68,144.64,7.03909]
[1728119065177,6.9118,144.68,144.64,0.12549]
[1728119065378,6.9118,144.68,144.64,30.12549]
[1728119065780,6.9123,144.67,144.64,30.12549]
[1728119066784,6.9123,144.67,144.64,0.12549]
[1728119069757,6.9123,144.67,144.64,30.0]
[1728119075664,6.9123,144.67,144.63,17.33060954]
[1728119076467,6.9123,144.67,144.63,10.41650954]
[1728119076884,20.0,144.69,144.63,10.41650954]
[1728119077091,6.9128,144.66,144.62,24.61310315]
[1728119077384,6.9133,144.65,144.62,7.20201315]
[1728119078090,6.9137,144.64,144.62,7.20201315]
[1728119079389,6.9133,144.65,144.62,7.20201315]
[1728119079570,6.9133,144.65,144.63,30.0]
[1728119083196,6.9137,144.64,144.63,30.0]
[1728119083503,33.75834337,144.67,144.62,7.20201315]
[1728119083802,6.9137,144.64,144.62,7.20201315]
[1728119084504,15.394,144.67,144.62,17.49303269]
[1728119085589,22.3066,144.67,144.62,41.69293269]
[1728119085774,6.9127,144.66,144.63,30.0]
[1728119088170,6.9127,144.66,144.63,40.29101954]
[1728119088999,22.3063,144.67,144.63,40.29101954]
[1728119090694,6.9123,144.67,144.63,40.29101954]
[1728119094297,6.9123,144.67,144.64,1.38238921]
[1728119094497,6.9123,144.67,144.64,31.38238921]
[1728119094701,6.9123,144.67,144.64,30.0]
[1728119095694,6.9123,144.67,144.65,1.38238232]
[1728119095900,6.9123,144.67,144.65,31.38238232]
[1728119097174,6.9123,144.67,144.65,30.0]
[1728119100105,6.9123,144.67,144.63,17.49308058]
[1728119101315,20.0,144.7,144.64,1.50786352]
[1728119101601,20.0,144.7,144.65,11.67326464]
[1728119101809,6.9113,144.69,144.66,10.29101954]
[1728119102387,26.9112,144.7,144.66,10.29101954]
[1728119102593,6.9112,144.7,144.67,0.12549]
[1728119102790,6.9112,144.7,144.67,0.25098]
[1728119102977,6.9112,144.7,144.67,30.25098]
[1728119103302,15.394,144.71,144.67,30.0]
[1728119103303,6.9115,144.69,144.67,30.0]
[1728119105606,6.9115,144.69,144.66,0.12549]
[1728119108509,6.9115,144.69,144.66,30.12549]
[1728119110908,6.9118,144.68,144.66,30.12549]
[1728119111303,6.9122,144.67,144.66,30.0]
[1728119111700,6.9127,144.66,144.65,30.0]
[1728119112286,6.9123,144.67,144.65,30.0]
[1728119112997,6.9118,144.68,144.65,30.0]
[1728119114413,26.9113,144.7,144.65,30.0]
[1728119114783,6.9117,144.69,144.65,30.0]
[1728119118010,6.9117,144.69,144.66,1.38223132]
[1728119118200,6.9117,144.69,144.66,30.0]
[1728119119006,6.9117,144.69,144.67,1.38223655]
[1728119119307,15.394,144.71,144.67,31.38223655]
[1728119119611,6.9108,144.7,144.67,30.0]
[1728119123912,6.9118,144.68,144.67,30.0]
[1728119127029,15.394,144.71,144.67,30.0]
[1728119127516,6.9112,144.7,144.67,30.0]
[1728119129541,6.9113,144.69,144.67,30.0]
[1728119132198,6.9109,144.7,144.67,30.0]
[1728119136230,6.9109,144.7,144.66,0.25098]
[1728119139115,6.9109,144.7,144.66,30.25098]
[1728119140830,6.9109,144.7,144.67,1.38211762]
[1728119141020,6.9109,144.7,144.67,30.0]
[1728119141831,6.9109,144.7,144.68,1.38212557]
[1728119143830,6.9109,144.7,144.67,30.0]
[1728119144026,6.9109,144.7,144.68,1.38212367]
[1728119144544,6.9109,144.7,144.68,31.38212367]
[1728119144721,6.9109,144.7,144.68,30.0]
[1728119144918,36.0005545,144.74,144.69,1.38212524]
[1728119145123,6.91,144.72,144.69,1.38212524]
[1728119146428,6.91,144.72,144.69,41.67314478]
[1728119146735,6.91,144.72,144.69,40.29101954]
[1728119148847,6.91,144.72,144.7,1.38194178]
[1728119149050,6.91,144.72,144.7,31.38194178]
[1728119149244,16.0005545,144.74,144.71,10.29101954]
[1728119149245,0.8509545,144.74,144.71,10.29101954]
[1728119150736,0.8509545,144.74,144.71,40.29101954]
[1728119153626,0.8509545,144.74,144.72,17.45179954]
[1728119153829,0.8509545,144.74,144.72,47.45179954]
[1728119155949,0.8509545,144.74,144.72,17.45179954]
[1728119158930,0.8509545,144.74,144.72,47.45179954]
[1728119159152,0.8509545,144.74,144.73,17.45139954]
[1728119159655,0.8509545,144.74,144.73,42.60967296]
[1728119160534,0.8509545,144.74,144.73,72.60967296]
[1728119161251,0.8509545,144.74,144.73,71.22828354]
[1728119162261,0.8509545,144.74,144.73,122.60952812]
[1728119162728,0.8509545,144.74,144.73,121.22828354]
[1728119166553,0.8509545,144.74,144.73,122.60945519]
[1728119172882,0.8509545,144.74,144.73,121.22828354]
[1728119178394,0.8509545,144.74,144.73,122.60945341]
[1728119178993,0.8509545,144.74,144.73,121.22828354]
[1728119180472,0.8509545,144.74,144.73,71.22828354]
[1728119180660,0.8509545,144.74,144.73,121.22828354]